[Event "Titled Tuesday Blitz November 08 Late 2022"]
[White "Sohal, Tanraj"]
[Black "Martinez Alcantara, Jose Eduardo"]
[WhiteFideId "2608499"]
[BlackFideId "3805662"]
[WhiteElo "2200"]
[BlackElo "2705"]
[Result "0-1"]
[Round "01"]
[TimeControl "180+1"]
[Date "2022.11.08"]
[WhiteClock "0:01:43"]
[BlackClock "0:02:02"]

1. d4 {[%clk 0:03:00]}  Nf6 {[%clk 0:03:00]} 2. Nf3 {[%clk 0:03:01]}  e6 {[%clk 0:03:00]} 3. g3 {[%clk 0:03:02]}  b5 {[%clk 0:03:00]} 4. Bg2 {[%clk 0:03:02]}  Bb7 {[%clk 0:03:01]} 5. O-O {[%clk 0:03:03]}  Be7 {[%clk 0:03:01]} 6. b3 {[%clk 0:03:02]}  d5 {[%clk 0:03:00]} 7. Bb2 {[%clk 0:03:02]}  O-O {[%clk 0:03:00]} 8. Nbd2 {[%clk 0:03:02]}  Nbd7 {[%clk 0:02:59]} 9. c4 {[%clk 0:03:02]}  bxc4 {[%clk 0:03:00]} 10. bxc4 {[%clk 0:03:02]}  Rb8 {[%clk 0:03:00]} 11. c5 {[%clk 0:02:59]}  c6 {[%clk 0:03:00]} 12. Qa4 {[%clk 0:02:57]}  Qc8 {[%clk 0:02:55]} 13. Bc3 {[%clk 0:02:53]}  Ba6 {[%clk 0:02:55]} 14. Rfe1 {[%clk 0:02:53]}  Bb5 {[%clk 0:02:55]} 15. Qa3 {[%clk 0:02:51]}  Ne4 {[%clk 0:02:36]} 16. Nxe4 {[%clk 0:02:47]}  dxe4 {[%clk 0:02:37]} 17. Nd2 {[%clk 0:02:46]}  f5 {[%clk 0:02:33]} 18. e3 {[%clk 0:02:36]}  Nf6 {[%clk 0:02:31]} 19. Nb3 {[%clk 0:02:34]}  Nd5 {[%clk 0:02:28]} 20. Bd2 {[%clk 0:02:33]}  Rf7 {[%clk 0:02:15]} 21. Rab1 {[%clk 0:02:25]}  Bd8 {[%clk 0:02:14]} 22. Nc1 {[%clk 0:02:15]}  Rfb7 {[%clk 0:02:12]} 23. Ne2 {[%clk 0:02:11]}  Bc4 {[%clk 0:02:04]} 24. Rxb7 {[%clk 0:02:10]}  Qxb7 {[%clk 0:02:04]} 25. Ba5 {[%clk 0:01:56]}  Qa6 {[%clk 0:02:03]} 26. Rc1 {[%clk 0:01:43]}  Bxe2 {[%clk 0:02:02]} 0-1


[Site "https://www.chess.com"]

[Event "Titled Tuesday Blitz November 08 Late 2022"]
[White "Stoyanov, Tsvetan"]
[Black "Ansh M Shah"]
[WhiteFideId "2917173"]
[BlackFideId "25033379"]
[WhiteElo "2349"]
[BlackElo "2084"]
[Result "1-0"]
[Round "01"]
[TimeControl "180+1"]
[Date "2022.11.09"]
[WhiteClock "0:01:34"]
[BlackClock "0:01:09"]

1. e4 {[%clk 0:02:59]}  c6 {[%clk 0:02:59]} 2. c4 {[%clk 0:02:58]}  d5 {[%clk 0:02:59]} 3. cxd5 {[%clk 0:02:59]}  cxd5 {[%clk 0:03:00]} 4. exd5 {[%clk 0:03:00]}  Nf6 {[%clk 0:03:00]} 5. Bb5+ {[%clk 0:03:00]}  Bd7 {[%clk 0:03:00]} 6. Bc4 {[%clk 0:03:00]}  a6 {[%clk 0:03:00]} 7. a4 {[%clk 0:02:57]}  g6 {[%clk 0:02:59]} 8. Nf3 {[%clk 0:02:57]}  Bg7 {[%clk 0:03:00]} 9. Nc3 {[%clk 0:02:57]}  O-O {[%clk 0:03:01]} 10. O-O {[%clk 0:02:56]}  Bg4 {[%clk 0:03:00]} 11. h3 {[%clk 0:02:56]}  Bf5 {[%clk 0:03:00]} 12. Qb3 {[%clk 0:02:50]}  Nbd7 {[%clk 0:02:51]} 13. d4 {[%clk 0:02:24]}  Rc8 {[%clk 0:02:21]} 14. Ne5 {[%clk 0:02:19]}  Nb6 {[%clk 0:02:11]} 15. Be2 {[%clk 0:02:09]}  Nbxd5 {[%clk 0:02:04]} 16. Qxb7 {[%clk 0:01:45]}  Nxc3 {[%clk 0:02:02]} 17. bxc3 {[%clk 0:01:46]}  Rxc3 {[%clk 0:02:02]} 18. Nc6 {[%clk 0:01:42]}  Qd7 {[%clk 0:01:26]} 19. Nxe7+ {[%clk 0:01:42]}  Kh8 {[%clk 0:01:26]} 20. Qxd7 {[%clk 0:01:42]}  Nxd7 {[%clk 0:01:23]} 21. Nxf5 {[%clk 0:01:39]}  gxf5 {[%clk 0:01:22]} 22. Bxa6 {[%clk 0:01:37]}  Bxd4 {[%clk 0:01:21]} 23. Bb2 {[%clk 0:01:35]}  Rc6 {[%clk 0:01:09]} 24. Bxd4+ {[%clk 0:01:34]} 1-0


[Site "https://www.chess.com"]

[Event "Titled Tuesday Blitz November 08 Late 2022"]
[White "Tan, Ralph"]
[Black "Pakleza, Zbigniew"]
[WhiteFideId "30966590"]
[BlackFideId "1119290"]
[WhiteElo "2059"]
[BlackElo "2411"]
[Result "1/2-1/2"]
[Round "01"]
[TimeControl "180+1"]
[Date "2022.11.09"]
[WhiteClock "0:00:21"]
[BlackClock "0:00:02"]

1. Nf3 {[%clk 0:02:59]}  d5 {[%clk 0:02:58]} 2. g3 {[%clk 0:02:59]}  Nf6 {[%clk 0:02:58]} 3. Bg2 {[%clk 0:03:00]}  Bf5 {[%clk 0:02:59]} 4. O-O {[%clk 0:03:00]}  e6 {[%clk 0:02:59]} 5. Nh4 {[%clk 0:02:59]}  Be4 {[%clk 0:02:59]} 6. f3 {[%clk 0:02:58]}  Bg6 {[%clk 0:02:59]} 7. d4 {[%clk 0:02:57]}  c5 {[%clk 0:02:56]} 8. c3 {[%clk 0:02:57]}  Nc6 {[%clk 0:02:56]} 9. Nxg6 {[%clk 0:02:50]}  hxg6 {[%clk 0:02:56]} 10. Be3 {[%clk 0:02:48]}  Qb6 {[%clk 0:02:49]} 11. Qd2 {[%clk 0:02:45]}  Be7 {[%clk 0:02:41]} 12. Bf2 {[%clk 0:02:31]}  O-O {[%clk 0:02:41]} 13. a4 {[%clk 0:02:17]}  cxd4 {[%clk 0:02:34]} 14. cxd4 {[%clk 0:02:16]}  Na5 {[%clk 0:02:31]} 15. Qc2 {[%clk 0:01:28]}  Rfc8 {[%clk 0:02:23]} 16. Nc3 {[%clk 0:01:27]}  Nc4 {[%clk 0:02:05]} 17. Rab1 {[%clk 0:01:22]}  Bb4 {[%clk 0:02:00]} 18. e4 {[%clk 0:01:12]}  Qa5 {[%clk 0:01:55]} 19. exd5 {[%clk 0:01:08]}  exd5 {[%clk 0:01:55]} 20. Qd3 {[%clk 0:00:30]}  b6 {[%clk 0:01:14]} 21. f4 {[%clk 0:00:21]}  Nxb2 {[%clk 0:01:08]} 22. Rxb2 {[%clk 0:00:21]}  Bxc3 {[%clk 0:00:55]} 23. Rb5 {[%clk 0:00:19]}  Qxa4 {[%clk 0:00:54]} 24. Bxd5 {[%clk 0:00:18]}  Nxd5 {[%clk 0:00:51]} 25. Rxd5 {[%clk 0:00:19]}  Qc6 {[%clk 0:00:32]} 26. Re5 {[%clk 0:00:16]}  Qc4 {[%clk 0:00:23]} 27. Qe3 {[%clk 0:00:16]}  Rd8 {[%clk 0:00:19]} 28. Rd1 {[%clk 0:00:15]}  b5 {[%clk 0:00:18]} 29. f5 {[%clk 0:00:14]}  gxf5 {[%clk 0:00:18]} 30. Rxf5 {[%clk 0:00:15]}  b4 {[%clk 0:00:18]} 31. Kg2 {[%clk 0:00:15]}  b3 {[%clk 0:00:17]} 32. Rc5 {[%clk 0:00:15]}  Qxc5 {[%clk 0:00:14]} 33. dxc5 {[%clk 0:00:16]}  Rxd1 {[%clk 0:00:14]} 34. Qxc3 {[%clk 0:00:17]}  Rb8 {[%clk 0:00:12]} 35. c6 {[%clk 0:00:16]}  b2 {[%clk 0:00:12]} 36. c7 {[%clk 0:00:17]}  b1=Q {[%clk 0:00:13]} 37. c8=Q+ {[%clk 0:00:16]}  Rxc8 {[%clk 0:00:12]} 38. Qxc8+ {[%clk 0:00:17]}  Kh7 {[%clk 0:00:12]} 39. Qh3+ {[%clk 0:00:17]}  Kg6 {[%clk 0:00:09]} 40. Qg4+ {[%clk 0:00:17]}  Kf6 {[%clk 0:00:09]} 41. Bd4+ {[%clk 0:00:17]}  Ke7 {[%clk 0:00:06]} 42. Qg5+ {[%clk 0:00:17]}  Kd7 {[%clk 0:00:04]} 43. Qd5+ {[%clk 0:00:18]}  Kc7 {[%clk 0:00:04]} 44. Qc5+ {[%clk 0:00:18]}  Kd7 {[%clk 0:00:02]} 45. Qd5+ {[%clk 0:00:18]}  Ke7 {[%clk 0:00:01]} 46. Bc5+ {[%clk 0:00:17]}  Kf6 {[%clk 0:00:01]} 47. Bd4+ {[%clk 0:00:15]}  Rxd4 {[%clk 0:00:01]} 48. Qxd4+ {[%clk 0:00:16]}  Kg6 {[%clk 0:00:02]} 49. Qxa7 {[%clk 0:00:15]}  Qc2+ {[%clk 0:00:02]} 50. Qf2 {[%clk 0:00:16]}  Qxf2+ {[%clk 0:00:02]} 51. Kxf2 {[%clk 0:00:17]}  Kg5 {[%clk 0:00:02]} 52. Kf3 {[%clk 0:00:17]}  f6 {[%clk 0:00:03]} 53. h3 {[%clk 0:00:17]}  Kf5 {[%clk 0:00:03]} 54. Ke3 {[%clk 0:00:18]}  Ke5 {[%clk 0:00:03]} 55. Kf3 {[%clk 0:00:19]}  g6 {[%clk 0:00:03]} 56. Ke3 {[%clk 0:00:19]}  f5 {[%clk 0:00:04]} 57. Kf3 {[%clk 0:00:20]}  g5 {[%clk 0:00:04]} 58. Ke3 {[%clk 0:00:20]}  Kd5 {[%clk 0:00:05]} 59. Kd3 {[%clk 0:00:20]}  Ke5 {[%clk 0:00:05]} 60. Ke3 {[%clk 0:00:20]}  Kd5 {[%clk 0:00:04]} 61. Kd3 {[%clk 0:00:21]}  Ke5 {[%clk 0:00:02]} 62. Ke3 {[%clk 0:00:21]} 1/2-1/2


[Site "https://www.chess.com"]

[Event "Titled Tuesday Blitz November 08 Late 2022"]
[White "Thomas, Anysia"]
[Black "Taboas Rodriguez, Daniel"]
[WhiteFideId "670472"]
[BlackFideId "2208466"]
[WhiteElo "2069"]
[BlackElo "2329"]
[Result "0-1"]
[Round "01"]
[TimeControl "180+1"]
[Date "2022.11.09"]
[WhiteClock "0:00:10"]
[BlackClock "0:00:19"]

1. d4 {[%clk 0:02:52]}  Nf6 {[%clk 0:02:44]} 2. c4 {[%clk 0:02:50]}  g6 {[%clk 0:02:44]} 3. Nc3 {[%clk 0:02:49]}  Bg7 {[%clk 0:02:44]} 4. e4 {[%clk 0:02:49]}  d6 {[%clk 0:02:43]} 5. h3 {[%clk 0:02:49]}  O-O {[%clk 0:02:43]} 6. Nf3 {[%clk 0:02:50]}  c5 {[%clk 0:02:42]} 7. d5 {[%clk 0:02:50]}  e6 {[%clk 0:02:43]} 8. Bd3 {[%clk 0:02:47]}  exd5 {[%clk 0:02:43]} 9. exd5 {[%clk 0:02:48]}  Re8+ {[%clk 0:02:43]} 10. Be3 {[%clk 0:02:49]}  Bh6 {[%clk 0:02:43]} 11. O-O {[%clk 0:02:49]}  Bxe3 {[%clk 0:02:44]} 12. fxe3 {[%clk 0:02:50]}  Qe7 {[%clk 0:02:44]} 13. e4 {[%clk 0:02:48]}  Nbd7 {[%clk 0:02:44]} 14. Qd2 {[%clk 0:02:33]}  a6 {[%clk 0:02:44]} 15. a4 {[%clk 0:02:30]}  Ne5 {[%clk 0:02:27]} 16. Rae1 {[%clk 0:02:15]}  Nfd7 {[%clk 0:02:21]} 17. b3 {[%clk 0:01:56]}  Nxf3+ {[%clk 0:02:17]} 18. Rxf3 {[%clk 0:01:57]}  Ne5 {[%clk 0:02:17]} 19. Rf2 {[%clk 0:01:56]}  Bd7 {[%clk 0:02:13]} 20. Ref1 {[%clk 0:01:56]}  Qh4 {[%clk 0:02:04]} 21. Bc2 {[%clk 0:01:50]}  Rf8 {[%clk 0:02:02]} 22. Rf4 {[%clk 0:01:48]}  Qg5 {[%clk 0:01:59]} 23. R4f2 {[%clk 0:01:35]}  Qxd2 {[%clk 0:01:57]} 24. Rxd2 {[%clk 0:01:36]}  b5 {[%clk 0:01:51]} 25. axb5 {[%clk 0:01:35]}  axb5 {[%clk 0:01:51]} 26. cxb5 {[%clk 0:01:29]}  Rfb8 {[%clk 0:01:50]} 27. Rf6 {[%clk 0:01:26]}  Rb6 {[%clk 0:01:46]} 28. Rdf2 {[%clk 0:01:24]}  Kg7 {[%clk 0:01:32]} 29. Kh2 {[%clk 0:01:22]}  Rd8 {[%clk 0:01:25]} 30. g4 {[%clk 0:01:17]}  Bxb5 {[%clk 0:01:22]} 31. Kg3 {[%clk 0:01:11]}  h6 {[%clk 0:01:16]} 32. Nd1 {[%clk 0:01:03]}  Bd7 {[%clk 0:01:10]} 33. Ne3 {[%clk 0:01:03]}  Be8 {[%clk 0:00:50]} 34. h4 {[%clk 0:00:59]}  Rb4 {[%clk 0:00:46]} 35. h5 {[%clk 0:00:57]}  Rd4 {[%clk 0:00:28]} 36. Bb1 {[%clk 0:00:43]}  c4 {[%clk 0:00:20]} 37. bxc4 {[%clk 0:00:41]}  Nxc4 {[%clk 0:00:21]} 38. Nxc4 {[%clk 0:00:41]}  Rxc4 {[%clk 0:00:22]} 39. hxg6 {[%clk 0:00:34]}  fxg6 {[%clk 0:00:23]} 40. Re6 {[%clk 0:00:33]}  Rc7 {[%clk 0:00:21]} 41. e5 {[%clk 0:00:30]}  dxe5 {[%clk 0:00:22]} 42. Rxe5 {[%clk 0:00:31]}  Rf7 {[%clk 0:00:22]} 43. Rxf7+ {[%clk 0:00:29]}  Bxf7 {[%clk 0:00:23]} 44. Re7 {[%clk 0:00:23]}  Kf6 {[%clk 0:00:20]} 45. Ra7 {[%clk 0:00:19]}  Rxd5 {[%clk 0:00:20]} 46. Ba2 {[%clk 0:00:13]}  Rd3+ {[%clk 0:00:19]} 47. Kf4 {[%clk 0:00:12]}  g5+ {[%clk 0:00:18]} 48. Ke4 {[%clk 0:00:10]}  Bg6# {[%clk 0:00:19]} 0-1


[Site "https://www.chess.com"]

[Event "Titled Tuesday Blitz November 08 Late 2022"]
[White "Tymrakiewicz, Rafal"]
[Black "Rasulov, Vugar"]
[WhiteFideId "1108832"]
[BlackFideId "13402390"]
[WhiteElo "2138"]
[BlackElo "2509"]
[Result "0-1"]
[Round "01"]
[TimeControl "180+1"]
[Date "2022.11.09"]
[WhiteClock "0:00:13"]
[BlackClock "0:01:52"]

1. d4 {[%clk 0:02:58]}  Nf6 {[%clk 0:02:59]} 2. Bg5 {[%clk 0:02:56]}  d5 {[%clk 0:02:58]} 3. e3 {[%clk 0:02:54]}  c5 {[%clk 0:02:58]} 4. c3 {[%clk 0:02:54]}  Nc6 {[%clk 0:02:58]} 5. Nd2 {[%clk 0:02:52]}  Bf5 {[%clk 0:02:55]} 6. Qb3 {[%clk 0:02:52]}  Qd7 {[%clk 0:02:49]} 7. Ngf3 {[%clk 0:02:47]}  c4 {[%clk 0:02:49]} 8. Qd1 {[%clk 0:02:46]}  e6 {[%clk 0:02:50]} 9. Bxf6 {[%clk 0:02:35]}  gxf6 {[%clk 0:02:50]} 10. Nh4 {[%clk 0:02:35]}  Bg6 {[%clk 0:02:48]} 11. Nxg6 {[%clk 0:02:34]}  hxg6 {[%clk 0:02:49]} 12. e4 {[%clk 0:02:34]}  O-O-O {[%clk 0:02:44]} 13. Qf3 {[%clk 0:02:29]}  f5 {[%clk 0:02:40]} 14. exd5 {[%clk 0:02:21]}  exd5 {[%clk 0:02:41]} 15. O-O-O {[%clk 0:02:21]}  Bh6 {[%clk 0:02:41]} 16. Kb1 {[%clk 0:02:21]}  Rhe8 {[%clk 0:02:38]} 17. g3 {[%clk 0:02:20]}  b5 {[%clk 0:02:31]} 18. Bg2 {[%clk 0:02:18]}  Kc7 {[%clk 0:02:29]} 19. h4 {[%clk 0:02:10]}  b4 {[%clk 0:02:28]} 20. h5 {[%clk 0:02:00]}  bxc3 {[%clk 0:02:25]} 21. bxc3 {[%clk 0:01:59]}  g5 {[%clk 0:02:04]} 22. g4 {[%clk 0:01:20]}  f4 {[%clk 0:02:01]} 23. Ka1 {[%clk 0:01:10]}  Bg7 {[%clk 0:02:00]} 24. Nb1 {[%clk 0:01:04]}  Qd6 {[%clk 0:01:57]} 25. Rhe1 {[%clk 0:01:03]}  Rxe1 {[%clk 0:01:55]} 26. Rxe1 {[%clk 0:01:03]}  Nxd4 {[%clk 0:01:55]} 27. cxd4 {[%clk 0:01:01]}  Bxd4+ {[%clk 0:01:56]} 28. Nc3 {[%clk 0:01:01]}  Qa3 {[%clk 0:01:52]} 29. Re7+ {[%clk 0:00:13]}  Qxe7 {[%clk 0:01:52]} 0-1


[Site "https://www.chess.com"]

[Event "Titled Tuesday Blitz November 08 Late 2022"]
[White "Urbina Perez, Juan Antonio"]
[Black "Terry, Renato"]
[WhiteFideId "2217368"]
[BlackFideId "3803457"]
[WhiteElo "2197"]
[BlackElo "2577"]
[Result "0-1"]
[Round "01"]
[TimeControl "180+1"]
[Date "2022.11.08"]
[WhiteClock "0:00:20"]
[BlackClock "0:01:11"]

1. e4 {[%clk 0:02:58]}  e6 {[%clk 0:02:58]} 2. Qe2 {[%clk 0:02:53]}  c5 {[%clk 0:02:57]} 3. c3 {[%clk 0:02:51]}  Nc6 {[%clk 0:02:58]} 4. g3 {[%clk 0:02:50]}  g6 {[%clk 0:02:58]} 5. Bg2 {[%clk 0:02:50]}  Bg7 {[%clk 0:02:58]} 6. d3 {[%clk 0:02:50]}  Nge7 {[%clk 0:02:58]} 7. Nf3 {[%clk 0:02:50]}  O-O {[%clk 0:02:55]} 8. O-O {[%clk 0:02:49]}  d6 {[%clk 0:02:54]} 9. Rd1 {[%clk 0:02:47]}  e5 {[%clk 0:02:50]} 10. h3 {[%clk 0:02:42]}  h6 {[%clk 0:02:44]} 11. Be3 {[%clk 0:02:39]}  f5 {[%clk 0:02:44]} 12. exf5 {[%clk 0:02:05]}  Nxf5 {[%clk 0:02:44]} 13. Nbd2 {[%clk 0:01:55]}  Be6 {[%clk 0:02:23]} 14. Nb3 {[%clk 0:01:44]}  Qd7 {[%clk 0:02:13]} 15. Kh2 {[%clk 0:01:40]}  Rae8 {[%clk 0:02:10]} 16. g4 {[%clk 0:01:19]}  Nxe3 {[%clk 0:02:09]} 17. Qxe3 {[%clk 0:01:20]}  Ne7 {[%clk 0:02:06]} 18. d4 {[%clk 0:01:17]}  exd4 {[%clk 0:02:01]} 19. cxd4 {[%clk 0:01:18]}  c4 {[%clk 0:01:59]} 20. Nbd2 {[%clk 0:01:10]}  Nd5 {[%clk 0:01:59]} 21. Qa3 {[%clk 0:01:03]}  Nf4 {[%clk 0:01:57]} 22. Bf1 {[%clk 0:00:51]}  Bd5 {[%clk 0:01:55]} 23. Rac1 {[%clk 0:00:47]}  b5 {[%clk 0:01:52]} 24. b3 {[%clk 0:00:40]}  Ne2 {[%clk 0:01:49]} 25. Rc2 {[%clk 0:00:35]}  c3 {[%clk 0:01:44]} 26. Bxe2 {[%clk 0:00:27]}  Rxe2 {[%clk 0:01:43]} 27. Rxc3 {[%clk 0:00:27]}  Bxd4 {[%clk 0:01:26]} 28. Rd3 {[%clk 0:00:23]}  Bc5 {[%clk 0:01:15]} 29. Qb2 {[%clk 0:00:20]}  Bxf3 {[%clk 0:01:11]} 0-1


[Site "https://www.chess.com"]

[Event "Titled Tuesday Blitz November 08 Late 2022"]
[White "Vlassov, Nikolai"]
[Black "Ardila, Oscar Humberto"]
[WhiteFideId "4103360"]
[BlackFideId "4404742"]
[WhiteElo "2324"]
[BlackElo "1959"]
[Result "1-0"]
[Round "01"]
[TimeControl "180+1"]
[Date "2022.11.09"]
[WhiteClock "0:00:53"]
[BlackClock "0:00:19"]

1. e4 {[%clk 0:02:59]}  e5 {[%clk 0:02:59]} 2. Bc4 {[%clk 0:02:58]}  Nf6 {[%clk 0:02:59]} 3. d3 {[%clk 0:02:58]}  h6 {[%clk 0:02:57]} 4. f4 {[%clk 0:02:57]}  d6 {[%clk 0:02:52]} 5. Nf3 {[%clk 0:02:55]}  Bg4 {[%clk 0:02:52]} 6. fxe5 {[%clk 0:02:55]}  Bxf3 {[%clk 0:02:49]} 7. Qxf3 {[%clk 0:02:52]}  dxe5 {[%clk 0:02:49]} 8. O-O {[%clk 0:02:51]}  Bc5+ {[%clk 0:02:48]} 9. Kh1 {[%clk 0:02:52]}  Nbd7 {[%clk 0:02:45]} 10. Nc3 {[%clk 0:02:51]}  c6 {[%clk 0:02:44]} 11. Ne2 {[%clk 0:02:48]}  Qe7 {[%clk 0:02:42]} 12. Ng3 {[%clk 0:02:48]}  g6 {[%clk 0:02:36]} 13. c3 {[%clk 0:02:41]}  O-O-O {[%clk 0:02:33]} 14. b4 {[%clk 0:02:41]}  Bb6 {[%clk 0:02:31]} 15. a4 {[%clk 0:02:41]}  h5 {[%clk 0:02:15]} 16. a5 {[%clk 0:02:40]}  Bc7 {[%clk 0:02:15]} 17. Be3 {[%clk 0:02:40]}  Kb8 {[%clk 0:02:14]} 18. Bg1 {[%clk 0:02:30]}  Ka8 {[%clk 0:02:11]} 19. b5 {[%clk 0:02:11]}  h4 {[%clk 0:02:07]} 20. Ne2 {[%clk 0:02:09]}  g5 {[%clk 0:01:52]} 21. bxc6 {[%clk 0:01:41]}  g4 {[%clk 0:01:48]} 22. cxb7+ {[%clk 0:01:37]}  Kxb7 {[%clk 0:01:43]} 23. Qe3 {[%clk 0:01:35]}  Bb8 {[%clk 0:01:41]} 24. a6+ {[%clk 0:01:32]}  Ka8 {[%clk 0:01:38]} 25. Rab1 {[%clk 0:01:25]}  Nb6 {[%clk 0:01:34]} 26. Rxb6 {[%clk 0:01:16]}  axb6 {[%clk 0:01:28]} 27. Qxb6 {[%clk 0:01:16]}  Rd6 {[%clk 0:01:17]} 28. Qb4 {[%clk 0:01:05]}  Ba7 {[%clk 0:01:13]} 29. Bxa7 {[%clk 0:01:01]}  Kxa7 {[%clk 0:01:11]} 30. Rxf6 {[%clk 0:00:59]}  Rb8 {[%clk 0:00:26]} 31. Qxd6 {[%clk 0:00:54]}  Rb1+ {[%clk 0:00:25]} 32. Ng1 {[%clk 0:00:54]}  Qxd6 {[%clk 0:00:25]} 33. Rxd6 {[%clk 0:00:54]}  h3 {[%clk 0:00:20]} 34. Rd7+ {[%clk 0:00:53]}  Kb6 {[%clk 0:00:19]} 35. Rb7+ {[%clk 0:00:53]} 1-0


[Site "https://www.chess.com"]

[Event "Titled Tuesday Blitz November 08 Late 2022"]
[White "Wartiovaara, Oliver"]
[Black "Korchmar, Vasiliy"]
[WhiteFideId "513024"]
[BlackFideId "24131750"]
[WhiteElo "2213"]
[BlackElo "2370"]
[Result "1-0"]
[Round "01"]
[TimeControl "180+1"]
[Date "2022.11.09"]
[WhiteClock "0:00:46"]
[BlackClock "0:00:04"]

1. e4 {[%clk 0:03:00]}  c5 {[%clk 0:02:59]} 2. Nf3 {[%clk 0:02:59]}  d6 {[%clk 0:02:59]} 3. d4 {[%clk 0:02:58]}  cxd4 {[%clk 0:03:00]} 4. Nxd4 {[%clk 0:02:59]}  Nf6 {[%clk 0:03:00]} 5. Nc3 {[%clk 0:02:59]}  Nc6 {[%clk 0:03:00]} 6. Bg5 {[%clk 0:02:56]}  Bd7 {[%clk 0:03:00]} 7. Bxf6 {[%clk 0:02:37]}  gxf6 {[%clk 0:02:58]} 8. Qd2 {[%clk 0:02:37]}  h5 {[%clk 0:02:54]} 9. f4 {[%clk 0:02:34]}  Bh6 {[%clk 0:02:48]} 10. g3 {[%clk 0:02:29]}  Rc8 {[%clk 0:02:19]} 11. Nb3 {[%clk 0:02:22]}  Ne5 {[%clk 0:02:00]} 12. Be2 {[%clk 0:02:20]}  Nc4 {[%clk 0:01:50]} 13. Bxc4 {[%clk 0:02:20]}  Rxc4 {[%clk 0:01:51]} 14. O-O-O {[%clk 0:02:14]}  a5 {[%clk 0:01:46]} 15. Kb1 {[%clk 0:02:09]}  a4 {[%clk 0:01:40]} 16. Nd4 {[%clk 0:01:57]}  a3 {[%clk 0:01:39]} 17. b3 {[%clk 0:01:55]}  Rc5 {[%clk 0:01:24]} 18. Qd3 {[%clk 0:01:39]}  O-O {[%clk 0:01:05]} 19. Nf5 {[%clk 0:01:37]}  Bxf5 {[%clk 0:00:51]} 20. exf5 {[%clk 0:01:38]}  Qd7 {[%clk 0:00:50]} 21. Nd5 {[%clk 0:01:37]}  Re8 {[%clk 0:00:27]} 22. Rhe1 {[%clk 0:01:35]}  Kf8 {[%clk 0:00:24]} 23. Qf3 {[%clk 0:01:30]}  Qc6 {[%clk 0:00:21]} 24. c4 {[%clk 0:01:19]}  b5 {[%clk 0:00:21]} 25. Qxh5 {[%clk 0:01:19]}  Bg7 {[%clk 0:00:20]} 26. Nb4 {[%clk 0:01:06]}  Qb7 {[%clk 0:00:12]} 27. Nd3 {[%clk 0:01:03]}  Rc7 {[%clk 0:00:07]} 28. c5 {[%clk 0:00:46]}  dxc5 {[%clk 0:00:07]} 29. Ne5 {[%clk 0:00:46]}  fxe5 {[%clk 0:00:06]} 30. fxe5 {[%clk 0:00:47]}  f6 {[%clk 0:00:04]} 31. e6 {[%clk 0:00:47]}  c4 {[%clk 0:00:04]} 32. Qf7# {[%clk 0:00:46]} 1-0


[Site "https://www.chess.com"]

[Event "Titled Tuesday Blitz November 08 Late 2022"]
[White "Xiong, Jeffery"]
[Black "Santos Flores, Alberto"]
[WhiteFideId "2047640"]
[BlackFideId "3601234"]
[WhiteElo "2725"]
[BlackElo "2235"]
[Result "1-0"]
[Round "01"]
[TimeControl "180+1"]
[Date "2022.11.08"]
[WhiteClock "0:00:06"]
[BlackClock "0:00:01"]

1. e4 {[%clk 0:03:00]}  c5 {[%clk 0:02:52]} 2. Nf3 {[%clk 0:02:38]}  Nc6 {[%clk 0:02:52]} 3. Nc3 {[%clk 0:02:38]}  g6 {[%clk 0:02:52]} 4. Bb5 {[%clk 0:02:33]}  Bg7 {[%clk 0:02:52]} 5. Bxc6 {[%clk 0:02:33]}  dxc6 {[%clk 0:02:51]} 6. d3 {[%clk 0:02:33]}  Bg4 {[%clk 0:02:43]} 7. h3 {[%clk 0:02:27]}  Bxf3 {[%clk 0:02:42]} 8. Qxf3 {[%clk 0:02:28]}  e5 {[%clk 0:02:41]} 9. a3 {[%clk 0:02:23]}  Nf6 {[%clk 0:02:36]} 10. b4 {[%clk 0:02:21]}  cxb4 {[%clk 0:02:33]} 11. axb4 {[%clk 0:02:21]}  a6 {[%clk 0:02:20]} 12. Be3 {[%clk 0:02:11]}  Nd7 {[%clk 0:02:19]} 13. O-O {[%clk 0:02:09]}  O-O {[%clk 0:02:13]} 14. Na4 {[%clk 0:02:07]}  Re8 {[%clk 0:02:03]} 15. Nc5 {[%clk 0:02:05]}  Nxc5 {[%clk 0:01:59]} 16. bxc5 {[%clk 0:02:06]}  Qc7 {[%clk 0:01:45]} 17. Rfb1 {[%clk 0:02:05]}  a5 {[%clk 0:01:40]} 18. Ra4 {[%clk 0:02:04]}  Ra7 {[%clk 0:01:25]} 19. g4 {[%clk 0:02:04]}  Qd7 {[%clk 0:01:18]} 20. h4 {[%clk 0:01:55]}  Rf8 {[%clk 0:01:12]} 21. h5 {[%clk 0:01:54]}  Qe7 {[%clk 0:00:53]} 22. Kg2 {[%clk 0:01:49]}  Bf6 {[%clk 0:00:49]} 23. Rba1 {[%clk 0:01:29]}  Rfa8 {[%clk 0:00:45]} 24. h6 {[%clk 0:01:00]}  Bg5 {[%clk 0:00:44]} 25. Kg3 {[%clk 0:00:54]}  Bxe3 {[%clk 0:00:42]} 26. Qxe3 {[%clk 0:00:55]}  Kh8 {[%clk 0:00:30]} 27. f4 {[%clk 0:00:51]}  f5 {[%clk 0:00:22]} 28. exf5 {[%clk 0:00:50]}  gxf5 {[%clk 0:00:20]} 29. Qxe5+ {[%clk 0:00:50]}  Qxe5 {[%clk 0:00:20]} 30. fxe5 {[%clk 0:00:51]}  fxg4 {[%clk 0:00:19]} 31. d4 {[%clk 0:00:51]}  Kg8 {[%clk 0:00:18]} 32. c4 {[%clk 0:00:46]}  Rd8 {[%clk 0:00:16]} 33. Rd1 {[%clk 0:00:47]}  Kf7 {[%clk 0:00:14]} 34. d5 {[%clk 0:00:48]}  Raa8 {[%clk 0:00:12]} 35. Ra2 {[%clk 0:00:32]}  Ke7 {[%clk 0:00:10]} 36. Kxg4 {[%clk 0:00:14]}  Rac8 {[%clk 0:00:10]} 37. Rxa5 {[%clk 0:00:13]}  Rg8+ {[%clk 0:00:08]} 38. Kh3 {[%clk 0:00:12]}  cxd5 {[%clk 0:00:05]} 39. cxd5 {[%clk 0:00:12]}  Rg6 {[%clk 0:00:05]} 40. Ra7 {[%clk 0:00:11]}  Rxh6+ {[%clk 0:00:02]} 41. Kg4 {[%clk 0:00:12]}  Rg8+ {[%clk 0:00:02]} 42. Kf5 {[%clk 0:00:08]}  Rh5+ {[%clk 0:00:03]} 43. Kf4 {[%clk 0:00:09]}  Rh4+ {[%clk 0:00:03]} 44. Kf5 {[%clk 0:00:09]}  Rh5+ {[%clk 0:00:03]} 45. Ke4 {[%clk 0:00:10]}  Rg4+ {[%clk 0:00:03]} 46. Kf3 {[%clk 0:00:10]}  Rhh4 {[%clk 0:00:02]} 47. Rxb7+ {[%clk 0:00:09]}  Ke8 {[%clk 0:00:03]} 48. Rb8+ {[%clk 0:00:05]}  Ke7 {[%clk 0:00:03]} 49. Rb7+ {[%clk 0:00:06]}  Ke8 {[%clk 0:00:03]} 50. Rd3 {[%clk 0:00:04]}  Rf4+ {[%clk 0:00:02]} 51. Ke3 {[%clk 0:00:05]}  Re4+ {[%clk 0:00:03]} 52. Kd2 {[%clk 0:00:05]}  Rxe5 {[%clk 0:00:04]} 53. c6 {[%clk 0:00:05]}  Rc4 {[%clk 0:00:01]} 54. Rb8+ {[%clk 0:00:05]}  Ke7 {[%clk 0:00:01]} 55. d6+ {[%clk 0:00:06]} 1-0


[Site "https://www.chess.com"]